[Event "European Women Blitz-ch 2024"]
[Site "Monaco"]
[Date "2025.01.10"]
[Round "6.17"]
[White "Jimenez Fernandez, Rebeca"]
[Black "Bulmaga, Irina"]
[Result "1-0"]
[Annotator "TA"]
[ECO "C22"]
[WhiteElo "2114"]
[BlackElo "2386"]
[PlyCount "63"]
[EventDate "2025.01.06"]
[EventType "swiss"]
[EventCountry "MNC"]
[SourceTitle "playchess.com"]
[Source "ChessBase"]
[SourceQuality "1"]
[TimeControl "180+2"]

{[%evp 15,63,-29,-34,-28,-37,-27,-31,-37,-43,-37,-35,-64,72,35,98,92,295,293,284,295,296,298,298,294,293,294,297,287,321,312,399,410,493,466,501,501,927,924,894,883,1569,1547,29981,29982,29982,29982,29987,29987,29984,6300]} 1. e4 {[%emt 0:00:01]} e5 {[%emt 0:00:01]} 2. d4 {[%emt 0:00:00]} exd4 {[%emt 0:00:02]} 3. Qxd4 {[%emt 0:00:01]} Nc6 {[%emt 0:00:01]} 4. Qe3 {[%emt 0:00:01]} Nf6 {[%emt 0:00:01]} 5. Nc3 {[%emt 0:00:01]} Bb4 {[%emt 0:00:01]} 6. Bd2 {[%emt 0:00:01]} O-O {[%emt 0:00:02]} 7. O-O-O {[%emt 0:00:01]} Re8 {[%emt 0:00:04]} 8. Bc4 {[%emt 0:00:01]} d6 {[%emt 0:00:03]} 9. Nf3 {[%emt 0:00:01]} Be6 {[%emt 0:00:02]} 10. Bxe6 {[%emt 0:00:02]} Rxe6 {[%emt 0:00:01]} 11. Ng5 {[%emt 0:00:01]} Re8 {[%emt 0:00:02]} 12. f3 {[%emt 0:03:15]} a6 {[%emt 0:00:05]} 13. h4 {[%emt 0:00:00]} d5 {[%emt 0:00:06]} (13... Ne5 $15 {keeps the upper hand.}) 14. Qf2 {[%emt 0:00:00]} (14. Nxd5 $5 Nxd5 15. Qb3 $14) 14... Ne5 {[%emt 0:00:43]} (14... dxe4 $14 15. Ngxe4 Nxe4 16. Nxe4 Bxd2+ 17. Rxd2 Qe7) 15. Nxd5 $16 {[%emt 0:00:00]} Nxd5 $2 {[%emt 0:00:04]} (15... Bxd2+ $16 16. Rxd2 (16. Qxd2 h6 $14) 16... Nxd5) 16. Bxb4 $18 {[%emt 0:00:00]} (16. exd5 Qxd5 17. Bxb4 Qxa2 $11) 16... Nxb4 {[%emt 0:00:25]} 17. Rxd8 {[%emt 0:00:00]} Raxd8 {[%emt 0:00:01]} 18. Kb1 {[%emt 0:00:00]} Nbc6 {[%emt 0:00:07]} 19. h5 {[%emt 0:00:00]} (19. f4 Nc4 20. e5 Rd4 $14) 19... h6 {[%emt 0:00:02]} 20. Nh3 {[%emt 0:00:00][%cal Bg5h3,Bh3f4,Bf4d5][%mdl 32]} Rd6 {[%emt 0:00:03]} 21. b3 {[%emt 0:00:00]} Red8 {[%emt 0:00:02]} 22. Nf4 {[%emt 0:00:00]} Rd2 {[%emt 0:00:12]} 23. Qg3 {[%emt 0:00:00]} Nd4 {[%emt 0:00:30]} 24. Nd5 {[%emt 0:00:00]} Nec6 {[%emt 0:00:32]} 25. Qxc7 {[%emt 0:00:00]} (25. Nxc7 Nxc2 26. Kc1 N2d4 $15 (26... Ne3 27. Nd5 $16)) 25... Rxc2 {[%emt 0:00:03]} (25... Rb8 $142 26. Ne7+ Kf8 27. Nxc6 Nxc6) 26. Ne7+ {[%emt 0:00:00]} Kh8 {[%emt 0:00:01]} 27. Nxc6 {[%emt 0:00:00]} Nxc6 {[%emt 0:00:02]} 28. Kxc2 {[%emt 0:00:00]} Rd4 {[%emt 0:00:10]} 29. Qxb7 {[%emt 0:00:00]} Rd6 {[%emt 0:00:01]} 30. Rd1 {[%emt 0:00:00]} ({Weaker is} 30. Qxa6 Nb4+ 31. Kc3 Nxa6 $16) 30... Nd4+ {[%emt 0:00:02]} 31. Kb2 {[%emt 0:00:00]} Kh7 {[%emt 0:00:01]} 32. Qa7 {[%emt 0:00:00]} (32. Qb8 $142 Rd7 33. Qc8 (33. Rxd4 Rxd4 34. Kc2 Rd7 $18) 33... Rd6 34. Qc5 (34. Rxd4 Rxd4 35. Kc2 Rd6 $18) 34... Rd8 35. Rxd4 Re8 36. Qc7 (36. Qf5+ Kg8 $18) 36... Kg8 37. Rd8) 1-0

[Event "European Women Blitz-ch 2024"]
[Site "Monaco"]
[Date "2025.01.10"]
[Round "6.18"]
[White "Piddubna, Bozhena"]
[Black "Cramling, Pia"]
[Result "1-0"]
[Annotator "TA"]
[ECO "E15"]
[WhiteElo "2152"]
[BlackElo "2416"]
[PlyCount "86"]
[EventDate "2025.01.06"]
[EventType "swiss"]
[EventCountry "MNC"]
[SourceTitle "playchess.com"]
[Source "ChessBase"]
[SourceQuality "1"]
[TimeControl "180+2"]

{[%evp 14,86,0,0,25,27,25,10,11,11,38,39,102,27,18,6,115,124,109,24,88,86,105,67,72,40,59,34,52,53,54,31,73,48,55,50,103,85,84,79,85,80,103,88,89,58,55,61,131,53,104,0,39,41,36,26,122,37,78,74,76,78,64,0,243,0,25,35,21,22,150,150,177,168,331]} 1. d4 {[%emt 0:00:01]} Nf6 {[%emt 0:00:01]} 2. c4 {[%emt 0:00:01]} e6 {[%emt 0:00:01]} 3. Nf3 {[%emt 0:00:00]} b6 {[%emt 0:00:01]} 4. g3 {[%emt 0:00:01]} Ba6 {[%emt 0:00:00]} 5. Qc2 {[%emt 0:00:02]} c5 {[%emt 0:00:03]} 6. Bg2 {[%emt 0:00:01]} Nc6 {[%emt 0:00:09]} 7. dxc5 {[%emt 0:00:18]} Bxc5 {[%emt 0:00:15]} 8. a3 {[%emt 0:00:05]} Bb7 {[%emt 0:00:07]} 9. O-O {[%emt 0:00:06]} O-O {[%emt 0:00:05]} 10. b4 {[%emt 0:00:21]} Be7 {[%emt 0:00:01]} 11. Bb2 {[%emt 0:02:28]} Rc8 {[%emt 0:00:04]} 12. Rd1 {[%emt 0:00:00]} d5 {[%emt 0:00:13] [#]} (12... d6 $14) 13. Qa4 {[%emt 0:00:00]} (13. Nc3 $1 $16) 13... Qc7 $11 {[%emt 0:00:43]} 14. cxd5 {[%emt 0:00:00]} exd5 {[%emt 0:00:18]} (14... Nxd5 $11 15. Nbd2 Bf6 16. Bxf6 Nxf6) 15. Nc3 $16 {[%emt 0:00:00]} Rfd8 {[%emt 0:00:08]} 16. Nb5 {[%emt 0:00:00]} (16. Bh3 $16) 16... Qb8 {[%emt 0:00:01]} (16... Qd7 $1 $11) 17. Nbd4 {[%emt 0:00:00] White is more active.} Ne4 {[%emt 0:00:02]} 18. Qb3 {[%emt 0:00:00]} Nxd4 {[%emt 0:00:05]} 19. Bxd4 {[%emt 0:00:00]} Bf8 {[%emt 0:00:07]} 20. Nd2 {[%emt 0:00:00]} Re8 {[%emt 0:00:12]} 21. e3 {[%emt 0:00:00]} Qa8 {[%emt 0:00:24]} 22. Nf3 {[%emt 0:00:00]} Ba6 {[%emt 0:00:04]} 23. Qb2 {[%emt 0:00:00]} Bb7 {[%emt 0:00:05]} 24. Ne5 {[%emt 0:00:01]} Rcd8 {[%emt 0:00:10]} (24... f6 $14 25. Nd7 Rc4) 25. Rac1 {[%emt 0:00:01]} f6 {[%emt 0:00:08]} 26. Nd3 {[%emt 0:00:07]} Rc8 {[%emt 0:00:03]} 27. Nf4 {[%emt 0:00:05]} Rxc1 {[%emt 0:00:01]} 28. Rxc1 {[%emt 0:00:02]} Rc8 {[%emt 0:00:00]} 29. Bh3 {[%emt 0:00:06]} Rxc1+ {[%emt 0:00:05]} 30. Qxc1 {[%emt 0:00:01]} Qb8 {[%emt 0:00:11] Dodges Qc7} ({Black should play} 30... Bd6 $14) 31. Ne6 {[%emt 0:00:12]} ({White should try} 31. Qd1 $16 {And now Be6+ would win.} Qe8 32. Be6+ Kh8 33. Qg4 (33. Bxd5 Bxd5 34. Nxd5 Qc6 $16)) 31... Bd6 {[%emt 0:00:02]} (31... Qc8 $14 32. Qb2 Qe8) 32. Nf4 {[%emt 0:00:01]} (32. f3 $16 Ng5 33. Nxg5 fxg5 34. Be6+ Kf8 35. Qc2) 32... Ng5 {[%emt 0:00:02] Threatens to win with ...Bxf4.} 33. Bg2 $36 {[%emt 0:00:02][%mdl 2048] White has some pressure.} Ne4 {[%emt 0:00:01]} 34. h4 {[%emt 0:00:02]} Be5 {[%emt 0:00:05]} (34... Qc7 $11 35. Qd1 Bxf4 36. exf4 h6) 35. Qb2 {[%emt 0:00:01]} (35. Bxe4 $16 Bxf4 36. Bxh7+ Kxh7 37. Qc2+ (37. exf4 Qe8 $18) (37. gxf4 Qe8 $14) 37... Kg8 38. exf4) 35... Qd6 {[%emt 0:00:03]} 36. Bxe4 {[%emt 0:00:04]} dxe4 {[%emt 0:00:02]} 37. Bxe5 {[%emt 0:00:02]} fxe5 {[%emt 0:00:02][%mdl 4096] Endgame KQB-KQN} 38. Ne2 {[%emt 0:00:02]} (38. Qb3+ $14 Kf8 39. Ne6+ Kg8 40. Ng5+ Bd5 41. Qa4) 38... Qd3 $2 {[%emt 0:00:06] [#]} (38... h6 $11 {and Black is okay.}) 39. Nc3 $2 {[%emt 0:00:03]} (39. Qxe5 $1 $18 {[%cal Re5e8]} Qd1+ 40. Kg2) 39... Bc6 {[%emt 0:00:05]} 40. Qb3+ {[%emt 0:00:02]} Kf8 {[%emt 0:00:02]} 41. b5 {[%emt 0:00:02]} Be8 {[%emt 0:00:02]} (41... Bb7 $11) 42. Qb4+ {[%emt 0:00:01]} Kf7 {[%emt 0:00:02]} 43. Nxe4 {[%emt 0:00:02]} Kg6 $2 {[%emt 0:00:07]} (43... Qd1+ 44. Kh2 Qc2) 1-0

[Event "European Women Blitz-ch 2024"]
[Site "Monaco"]
[Date "2025.01.10"]
[Round "7.1"]
[White "Ushenina, Anna"]
[Black "Paehtz, Elisabeth"]
[Result "1-0"]
[Annotator "TA"]
[ECO "B07"]
[WhiteElo "2418"]
[BlackElo "2428"]
[PlyCount "127"]
[EventDate "2025.01.06"]
[EventType "swiss"]
[EventCountry "MNC"]
[SourceTitle "playchess.com"]
[Source "ChessBase"]
[SourceQuality "1"]
[TimeControl "180+2"]

{[%evp 51,127,191,250,252,247,235,240,245,320,243,341,306,428,424,447,190,189,85,82,82,83,70,63,75,87,97,227,196,243,241,234,243,214,231,777,777,694,676,633,8,8,8,8,8,8,8,8,8,8,8,24,8,10,8,20,8,262,363,348,308,318,169,308,322,304,243,402,0,304,295,418,395,11820,11820,5608,0,29965,29951]} 1. Nf3 {[%emt 0:00:02]} Nf6 {[%emt 0:00:00]} 2. d4 {[%emt 0:00:01]} g6 {[%emt 0:00:01]} 3. Nbd2 {[%emt 0:00:01]} Bg7 {[%emt 0:00:04]} 4. e4 {[%emt 0:00:01]} d6 {[%emt 0:00:01]} 5. Bb5+ {[%emt 0:00:02]} c6 {[%emt 0:00:04]} 6. Bd3 {[%emt 0:00:01]} Qc7 {[%emt 0:00:02]} 7. O-O {[%emt 0:00:03]} c5 {[%emt 0:00:01]} 8. dxc5 {[%emt 0:00:05]} Qxc5 {[%emt 0:00:03]} 9. Nb3 {[%emt 0:00:08]} Qc7 {[%emt 0:00:01]} 10. h3 {[%emt 0:00:04]} O-O {[%emt 0:00:04]} 11. Re1 {[%emt 0:00:06]} Nc6 {[%emt 0:00:02]} 12. c3 {[%emt 0:00:02]} e5 {[%emt 0:00:25]} 13. Bg5 {[%emt 0:00:11]} Be6 {[%emt 0:00:01]} 14. Qd2 {[%emt 0:00:07]} Nh5 {[%emt 0:00:06]} 15. Rad1 {[%emt 0:00:03]} a5 {[%emt 0:00:10]} 16. Bf1 {[%emt 0:00:09]} a4 {[%emt 0:00:05]} 17. Nc1 {[%emt 0:00:01]} Qb6 {[%emt 0:00:28]} 18. a3 {[%emt 0:00:12]} f6 {[%emt 0:00:17]} 19. Be3 {[%emt 0:00:03]} Qa5 {[%emt 0:00:07]} 20. Qxd6 {[%emt 0:00:08]} Bf7 {[%emt 0:00:02]} 21. Qc5 {[%emt 0:00:06]} Qc7 {[%emt 0:00:02]} 22. Bc4 {[%emt 0:00:11]} Nf4 {[%emt 0:00:02]} 23. Bxf7+ {[%emt 0:00:02]} Rxf7 {[%emt 0:00:02]} 24. Bxf4 {[%emt 0:00:02]} exf4 {[%emt 0:00:01]} 25. Nd3 {[%emt 0:00:07]} g5 {[%emt 0:00:04]} 26. Nb4 {[%emt 0:00:01]} Nxb4 {[%emt 0:00:20]} (26... Bf8 27. Qb5 Ra5) 27. Qxb4 $18 {[%emt 0:00:06]} (27. cxb4 $6 Qxc5 28. bxc5 h6 $16) 27... Bf8 {[%emt 0:00:07]} 28. Qb5 {[%emt 0:00:08]} Ra5 {[%emt 0:00:03]} 29. Qd3 {[%emt 0:00:07]} Qb6 {[%emt 0:00:03]} 30. Rd2 {[%emt 0:00:02]} Rb5 {[%emt 0:00:01]} (30... Re7 31. Qc4+ Qe6) 31. Qc2 $18 {[%emt 0:00:09]} Bc5 {[%emt 0:00:04]} 32. Red1 {[%emt 0:00:20]} (32. Qxa4 Rxb2 33. Ree2 Rb1+ 34. Kh2 Rc1 $16) 32... Rb3 {[%emt 0:00:14]} 33. Nd4 {[%emt 0:00:18]} (33. e5 $142) 33... Bxd4 $18 {[%emt 0:00:02]} 34. Rxd4 {[%emt 0:00:01]} (34. cxd4 $18 {and White stays clearly on top. Black must now prevent e5.} Qc7 35. d5) 34... Rxb2 $16 {[%emt 0:00:02]} 35. Qxa4 {[%emt 0:00:01]} Kg7 {[%emt 0:00:03]} 36. R4d2 {[%emt 0:00:17]} (36. Qe8 {is interesting.} Qc5 37. f3 Rc2 38. Kh2) 36... Rxd2 {[%emt 0:00:17]} 37. Rxd2 {[%emt 0:00:00]} Qc5 {[%emt 0:00:02]} 38. Qb4 {[%emt 0:00:04]} Qe5 {[%emt 0:00:05]} (38... Rc7 $16) 39. Rd5 $18 {[%emt 0:00:04]} Qe6 {[%emt 0:00:03]} 40. Qd4 {[%emt 0:00:04]} h6 {[%emt 0:00:02]} 41. a4 {[%emt 0:00:05]} Qa6 {[%emt 0:00:04]} 42. a5 {[%emt 0:00:09]} Qe2 $2 {[%emt 0:00:03]} (42... Qc6 43. Kh2 Qe6) 43. e5 $18 {[%emt 0:00:22]} Kg6 {[%emt 0:00:10]} 44. exf6 {[%emt 0:00:03]} Rxf6 {[%emt 0:00:01]} 45. Qd3+ $2 {[%emt 0:00:04]} (45. Re5 $18 Qa6 46. h4) 45... Qxd3 $11 {[%emt 0:00:01]} 46. Rxd3 {[%emt 0:00:01]} Rf5 {[%emt 0:00:02]} 47. Rd6+ {[%emt 0:00:02]} Kh5 {[%emt 0:00:07]} 48. Rb6 {[%emt 0:00:03]} Rxa5 {[%emt 0:00:02]} 49. Rxb7 {[%emt 0:00:01]} Rc5 {[%emt 0:00:06]} 50. Rb3 {[%emt 0:00:01]} Kg6 {[%emt 0:00:03]} 51. Kf1 {[%emt 0:00:01]} Kf5 {[%emt 0:00:02]} 52. Ke2 {[%emt 0:00:01]} h5 {[%emt 0:00:03]} 53. Kd3 {[%emt 0:00:03]} Ke5 $2 {[%emt 0:00:09][%mdl 8192] [#]} (53... Rd5+ $11 54. Kc2 Re5) 54. c4 $1 $18 {[%emt 0:00:02]} Rc8 {[%emt 0:00:06]} 55. Rb5+ {[%emt 0:00:01]} Kf6 {[%emt 0:00:01]} 56. Kd4 {[%emt 0:00:03]} (56. Rd5 $142) 56... Rd8+ {[%emt 0:00:01]} (56... Re8 $142 57. c5 Rd8+ 58. Kc3 Ke5) 57. Rd5 $18 {[%emt 0:00:01]} Ra8 {[%emt 0:00:01]} 58. Rd6+ {[%emt 0:00:10]} Kf5 $2 {[%emt 0:00:01]} (58... Kf7 {keeps fighting.} 59. Rd5 Kf6) 59. Rd5+ {[%emt 0:00:02]} Kf6 {[%emt 0:00:01]} 60. c5 {[%emt 0:00:02]} Ra2 {[%emt 0:00:01]} (60... Ra4+ $142 61. Kc3 Ra1) 61. c6 $18 {[%emt 0:00:01]} Rd2+ $2 {[%emt 0:00:03]} (61... Ke6 62. c7 (62. Rxg5 Ra4+ 63. Kd3 Kd6 $18) 62... Rc2) 62. Kc5 $18 {[%emt 0:00:01]} Rxf2 {[%emt 0:00:02]} 63. Rd4 $2 {[%emt 0:00:01]} (63. Kd6 $18 {Threatening mate with c7.} Re2 64. c7) 63... Ra2 $2 {[%emt 0:00:05][%mdl 8192]} (63... Rxg2 $2 {is the wrong capture.} 64. c7 Rc2+ 65. Rc4 $18) (63... Rc2+ $11 64. Rc4 Rxc4+ 65. Kxc4 Ke7) 64. c7 {[%emt 0:00:01]} 1-0

[Event "European Women Blitz-ch 2024"]
[Site "Monaco"]
[Date "2025.01.10"]
[Round "7.2"]
[White "Kulon, Klaudia"]
[Black "Kosteniuk, Alexandra"]
[Result "1/2-1/2"]
[Annotator "TA"]
[ECO "A26"]
[WhiteElo "2393"]
[BlackElo "2484"]
[PlyCount "93"]
[EventDate "2025.01.06"]
[EventType "swiss"]
[EventCountry "MNC"]
[SourceTitle "playchess.com"]
[Source "ChessBase"]
[SourceQuality "1"]
[TimeControl "180+2"]

{[%evp 28,93,-82,-160,-139,-159,-168,-184,-45,-39,29,0,57,37,29,-47,-43,-49,0,0,0,-120,-111,-120,-73,-622,-642,-435,-402,-374,-173,-164,-137,-129,-134,-127,-126,-168,-185,-297,-294,-290,-289,-310,-267,-276,-275,-328,0,-372,0,0,0,0,0,0,0,0,0,-265,0,0,0,-244,0,0,0,-182]} 1. c4 {[%emt 0:00:01]} e5 {[%emt 0:00:01]} 2. g3 {[%emt 0:00:01]} Nc6 {[%emt 0:00:04]} 3. Bg2 {[%emt 0:03:06]} f5 {[%emt 0:00:02]} 4. Nc3 {[%emt 0:00:00]} Nf6 {[%emt 0:00:01]} 5. d3 {[%emt 0:00:00]} g6 {[%emt 0:00:01]} 6. e4 {[%emt 0:00:00]} d6 {[%emt 0:00:04]} 7. Nge2 {[%emt 0:00:00]} Bg7 {[%emt 0:00:01]} 8. O-O {[%emt 0:00:00]} O-O {[%emt 0:00:02]} 9. exf5 {[%emt 0:00:00]} Bxf5 {[%emt 0:00:06]} 10. d4 {[%emt 0:00:00]} Qd7 {[%emt 0:00:22]} 11. dxe5 {[%emt 0:00:00]} Nxe5 {[%emt 0:00:04]} 12. Nf4 {[%emt 0:00:00]} c6 {[%emt 0:00:04]} 13. b3 {[%emt 0:00:00]} Kh8 {[%emt 0:00:07]} 14. Bb2 {[%emt 0:00:00]} Rae8 {[%emt 0:00:07]} 15. Qd2 {[%emt 0:00:00]} (15. Ba3 $142) 15... g5 $17 {[%emt 0:00:04]} 16. Nfe2 {[%emt 0:00:00]} Nd3 $1 {[%emt 0:00:37]} 17. Ba3 {[%emt 0:00:00]} h6 {[%emt 0:00:02]} (17... Ng4 $19 18. Nc1 Ndxf2) 18. Rad1 $15 {[%emt 0:00:00]} c5 {[%emt 0:00:16]} (18... Ng4 $15 19. f3 Ne3) 19. Nc1 $11 {[%emt 0:00:00]} Nxc1 {[%emt 0:00:03]} (19... Nxf2 $1 $11 20. Rxf2 (20. Qxf2 Ng4 $15) 20... Ng4) 20. Qxc1 {[%emt 0:00:00]} Bh3 {[%emt 0:00:22]} 21. Nb5 {[%emt 0:00:00]} (21. f3 $11) 21... Bxg2 $15 {[%emt 0:00:05]} 22. Kxg2 {[%emt 0:00:00]} Qc6+ {[%emt 0:00:05]} (22... Ng4 $15 23. Rxd6 (23. Nxd6 Re2 $17) 23... Qf5) 23. Kg1 $1 $11 {[%emt 0:00:00]} Re6 {[%emt 0:00:09]} 24. Nxa7 {[%emt 0:00:00]} (24. f3 $11 {remains equal.}) 24... Qf3 $17 {[%emt 0:00:00]} 25. Nb5 {[%emt 0:00:00]} Ng4 {[%emt 0:00:06]} ({Black should play} 25... Qh5 26. Bb2 (26. Rxd6 $2 Ng4 $19) 26... Ng4 27. Bxg7+ (27. Nxd6 $2 Qxh2#) 27... Kxg7 28. Qb2+ (28. Nxd6 $2 Qxh2#) 28... Ref6 (28... Kg8 29. f3 $17)) 26. Qd2 $2 {[%emt 0:00:00][%mdl 8192]} (26. Rd2 $17 Re2 27. Rxe2 (27. Qd1 $2 Ne3 28. Rxe2 Qg2#) 27... Qxe2 28. Qd1 Rxf2 29. Qxe2 Rxe2 30. h3) 26... Re2 $19 {[%emt 0:00:03]} 27. Qd5 {[%emt 0:00:00]} Qxd5 {[%emt 0:00:18]} (27... Rxa2 28. Qxf3 Rxf3 29. Bc1 $17 (29. Rxd6 Nxf2 30. Rdd1 Nh3+ 31. Kh1 Rxb3 $17)) 28. cxd5 {[%emt 0:00:00]} (28. Rxd5 Nxf2 (28... Rfxf2 29. Rxf2 Nxf2 30. Rxd6 $11) 29. Rxf2 Rfxf2 30. Rxd6 Rg2+ (30... Rxa2 $2 31. Bxc5 Rg2+ 32. Kf1 $19) 31. Kh1 Rxh2+ (31... Rxa2 $2 32. Bxc5 Rxh2+ 33. Kg1 $19) 32. Kg1 b6 $19 (32... Rxa2 33. Bxc5 Rag2+ 34. Kf1 $19)) 28... Rxa2 {[%emt 0:00:42]} (28... Rfxf2 29. Rxf2 Nxf2 30. Rf1 $19) (28... Nxf2 $142 29. Rde1 Rxa2) 29. Bc1 $19 {[%emt 0:00:04]} Nxf2 {[%emt 0:00:00]} 30. Rd2 {[%emt 0:00:05]} Rxd2 {[%emt 0:00:00]} 31. Bxd2 {[%emt 0:00:01]} Ne4 {[%emt 0:00:00]} 32. Rxf8+ {[%emt 0:00:06]} Bxf8 {[%emt 0:00:00]} 33. Ba5 {[%emt 0:00:03]} (33. Bc1 {is a better defense.}) 33... Kg7 $19 {[%emt 0:00:00]} 34. Kg2 {[%emt 0:00:01]} Kf6 {[%emt 0:00:00]} 35. Kf3 {[%emt 0:00:07]} Ke5 {[%emt 0:00:00]} 36. Nc7 {[%emt 0:00:02]} h5 {[%emt 0:00:00]} 37. h3 {[%emt 0:00:01]} Nf6 $2 {[%emt 0:00:04]} (37... Be7 $19 38. Be1 Kd4) 38. Bc3+ $1 $11 {[%emt 0:00:03]} Kf5 {[%emt 0:00:01]} 39. Bxf6 {[%emt 0:00:13]} Kxf6 {[%emt 0:00:00]} 40. Ke4 {[%emt 0:00:01]} g4 {[%emt 0:00:06]} 41. hxg4 {[%emt 0:00:01]} hxg4 {[%emt 0:00:01]} 42. Nb5 {[%emt 0:00:01]} Kg5 {[%emt 0:00:06]} 43. Nc7 $2 {[%emt 0:00:03][%mdl 8192] [#]} (43. Na3 $1 $11) 43... Be7 $2 {[%emt 0:00:01]} (43... Bg7 $1 $19 {[%cal Rg7e5]} 44. Ne6+ Kg6) 44. Nb5 $11 {[%emt 0:00:03]} Bf8 {[%emt 0:00:03]} 45. Nc7 $2 {[%emt 0:00:01] [#]} (45. Na3 $11 {and White is okay.}) 45... Be7 $2 {[%emt 0:00:01]} (45... Bg7 $1 $19 {[%cal Rg7e5] aiming for ...Be5.} 46. Ne6+ Kf6) 46. Nb5 $11 {[%emt 0:00:00]} Bf8 $2 {[%emt 0:00:04]} (46... b6 $11) 47. Nc7 {[%emt 0:00:01]} 1/2-1/2

[Event "European Women Blitz-ch 2024"]
[Site "Monaco"]
[Date "2025.01.10"]
[Round "7.3"]
[White "Zhukova, Natalia"]
[Black "Matnadze Bujiashvili, Ann"]
[Result "1-0"]
[Annotator "TA"]
[ECO "B22"]
[WhiteElo "2306"]
[BlackElo "2315"]
[PlyCount "100"]
[EventDate "2025.01.06"]
[EventType "swiss"]
[EventCountry "MNC"]
[SourceTitle "playchess.com"]
[Source "ChessBase"]
[SourceQuality "1"]
[TimeControl "180+2"]

{[%evp 15,100,19,35,7,37,37,41,35,86,82,74,66,58,65,65,73,102,97,122,118,107,73,145,139,216,172,228,217,240,246,285,256,252,222,261,229,233,202,200,193,210,206,312,195,214,212,252,168,167,184,150,179,167,170,250,169,256,0,236,263,29970,29973,29973,29974,29969,29973,29975,29976,29980,29980,29981,29980,29979,29980,29986,29987,29987,29988,29990,29991,29993,29991,29991,29987,29987,29988,29988]} 1. e4 {[%emt 0:00:01][%cal Be2e4,Be4e5][%mdl 32]} c5 {[%emt 0:00:00]} 2. c3 {[%emt 0:00:00]} Nf6 {[%emt 0:00:03]} 3. e5 {[%emt 0:00:01]} Nd5 {[%emt 0:00:01]} 4. Bc4 {[%emt 0:00:01]} Nb6 {[%emt 0:00:01]} 5. Bb3 {[%emt 0:00:01]} d5 {[%emt 0:00:08]} 6. exd6 {[%emt 0:00:04]} Qxd6 {[%emt 0:00:01]} 7. Nf3 {[%emt 0:00:06]} c4 {[%emt 0:00:08]} 8. Bc2 {[%emt 0:00:04]} Nc6 {[%emt 0:00:05]} 9. Na3 {[%emt 0:00:05]} Bg4 {[%emt 0:00:19]} 10. h3 {[%emt 0:00:04]} Bh5 {[%emt 0:00:03]} 11. Qe2 {[%emt 0:00:03] Wards off Ne5} e6 {[%emt 0:00:44]} ({Black should try} 11... Bg6 $14) 12. g4 {[%emt 0:00:09]} Bg6 {[%emt 0:00:01]} 13. Bxg6 {[%emt 0:00:04]} hxg6 {[%emt 0:00:01]} 14. Nxc4 {[%emt 0:00:03]} Nxc4 {[%emt 0:00:24]} 15. Qxc4 {[%emt 0:00:01]} a6 {[%emt 0:00:02]} 16. d4 {[%emt 0:00:04]} b5 {[%emt 0:00:09]} 17. Qe2 {[%emt 0:00:04]} Qd5 {[%emt 0:00:04]} 18. a4 {[%emt 0:00:08]} b4 {[%emt 0:00:31]} (18... Na5 $142) 19. c4 $16 {[%emt 0:00:07]} Qa5 {[%emt 0:00:20]} (19... Qd6 $16) 20. b3 {[%emt 0:00:03]} O-O-O {[%emt 0:00:14]} (20... Qc7 {keeps fighting.} 21. Bg5 Be7) 21. Bb2 $18 {[%emt 0:00:04]} Be7 {[%emt 0:00:06]} 22. O-O-O {[%emt 0:00:11]} Rd7 {[%emt 0:00:05]} 23. Qe4 {[%emt 0:00:09]} Qc7 {[%emt 0:00:05]} 24. Kc2 {[%emt 0:00:04]} Rhd8 {[%emt 0:00:01]} 25. h4 {[%emt 0:00:08]} Kb8 {[%emt 0:00:05]} 26. h5 {[%emt 0:00:02]} gxh5 {[%emt 0:00:02]} 27. Rxh5 {[%emt 0:00:01]} g6 {[%emt 0:00:03]} 28. Rh7 {[%emt 0:00:03]} Bf8 {[%emt 0:00:06]} (28... Bf6 $142 29. Kb1 Bh8) 29. Rh8 {[%emt 0:00:14]} Bg7 {[%emt 0:00:03]} 30. Rxd8+ {[%emt 0:00:02]} Nxd8 {[%emt 0:00:03]} 31. d5 {[%emt 0:00:06]} Bxb2 {[%emt 0:00:02]} 32. Kxb2 {[%emt 0:00:01]} exd5 {[%emt 0:00:01]} 33. Rxd5 {[%emt 0:00:01]} (33. cxd5 Qc3+ 34. Ka2 Re7 35. Qf4+ (35. Qxe7 Qc2+ 36. Ka1 Qc3+ 37. Ka2 Qc2+ 38. Ka1 Qc3+ 39. Ka2 $11) 35... Ka7 $16) 33... Rxd5 {[%emt 0:00:01]} 34. Qxd5 {[%emt 0:00:01][%mdl 4096] Endgame Ne5 is the strong threat. KQN-KQN. White is a pawn up.} ({Don't take} 34. cxd5 $6 Qc3+ 35. Ka2 Kc7 $16) 34... Nb7 {[%emt 0:00:02]} (34... Qb6 $142) 35. Qe5 {[%emt 0:00:02]} Nd6 {[%emt 0:00:01]} (35... Nc5 $142 36. Qd5 Nb7) 36. Qd5 {[%emt 0:00:14]} Nb7 {[%emt 0:00:03]} 37. Ne5 {[%emt 0:00:02]} Nd8 $2 {[%emt 0:00:02] [#]} (37... Ka8 $18 38. Kc2 (38. Nxf7 Qf4 $11) 38... Qe7) 38. Qxd8+ $3 {[%emt 0:00:05][%mdl 512]} Qxd8 {[%emt 0:00:01]} 39. Nc6+ {[%emt 0:00:01]} (39. Nxf7 $2 {perishes.} Qf6+ 40. Kc1 Qxf7 $19) 39... Kc7 {[%emt 0:00:01]} 40. Nxd8 {[%emt 0:00:01]} Kxd8 {[%emt 0:00:01] KP-KP. White is a pawn up.} 41. Kc2 {[%emt 0:00:01]} a5 {[%emt 0:00:07]} 42. Kd3 {[%emt 0:00:01]} Kc7 {[%emt 0:00:01]} 43. Kd4 {[%emt 0:00:01]} Kd6 {[%emt 0:00:01]} 44. c5+ {[%emt 0:00:00][%cal Bc4c5,Bc5c6][%mdl 32]} Kc6 {[%emt 0:00:01]} 45. g5 {[%emt 0:00:01]} Kd7 {[%emt 0:00:02]} 46. Kd5 {[%emt 0:00:03]} Kc7 {[%emt 0:00:02]} 47. c6 {[%emt 0:00:00]} Kc8 {[%emt 0:00:01]} 48. Kc5 {[%emt 0:00:03]} Kc7 {[%emt 0:00:01]} 49. Kb5 {[%emt 0:00:01]} Kd6 {[%emt 0:00:02]} 50. Kb6 {[%emt 0:00:00]} Kd5 {[%emt 0:00:11]} 1-0